[Event "Late Titled Tuesday Blitz February 8 2022"]
[White "Mamedyarov, Shakhriyar"]
[Black "Jones, Gawain C B"]
[WhiteFideId "13401319"]
[BlackFideId "409561"]
[WhiteElo "2769"]
[BlackElo "2657"]
[Result "1-0"]
[Round "04"]
[TimeControl "180+1"]
[Date "2022.02.08"]
[WhiteClock "0:00:08"]
[BlackClock "0:00:04"]

1. e4 {[%clk 0:02:59]}  e5 {[%clk 0:02:59]} 2. Nc3 {[%clk 0:02:57]}  Nf6 {[%clk 0:02:59]} 3. d4 {[%clk 0:02:58]}  exd4 {[%clk 0:02:59]} 4. Qxd4 {[%clk 0:02:59]}  Nc6 {[%clk 0:02:59]} 5. Qd3 {[%clk 0:02:59]}  Bc5 {[%clk 0:02:51]} 6. f3 {[%clk 0:02:47]}  d6 {[%clk 0:02:43]} 7. a3 {[%clk 0:02:40]}  Be6 {[%clk 0:02:42]} 8. Be3 {[%clk 0:02:39]}  Ne5 {[%clk 0:02:41]} 9. Qd2 {[%clk 0:02:39]}  Bb6 {[%clk 0:02:20]} 10. O-O-O {[%clk 0:02:38]}  Qe7 {[%clk 0:02:08]} 11. f4 {[%clk 0:02:18]}  Nc4 {[%clk 0:02:01]} 12. Bxc4 {[%clk 0:02:17]}  Bxc4 {[%clk 0:02:02]} 13. Nf3 {[%clk 0:02:18]}  O-O {[%clk 0:01:58]} 14. Rhe1 {[%clk 0:02:17]}  Ba5 {[%clk 0:01:44]} 15. Bd4 {[%clk 0:02:09]}  c5 {[%clk 0:01:40]} 16. Bf2 {[%clk 0:01:51]}  b5 {[%clk 0:01:14]} 17. Bh4 {[%clk 0:01:52]}  b4 {[%clk 0:01:12]} 18. Nd5 {[%clk 0:01:50]}  Bxd5 {[%clk 0:01:11]} 19. exd5 {[%clk 0:01:51]}  Qd8 {[%clk 0:01:06]} 20. a4 {[%clk 0:01:48]}  b3 {[%clk 0:01:04]} 21. c3 {[%clk 0:01:47]}  Qd7 {[%clk 0:00:54]} 22. Bxf6 {[%clk 0:01:02]}  Qxa4 {[%clk 0:00:54]} 23. Qd3 {[%clk 0:01:02]}  Qxf4+ {[%clk 0:00:51]} 24. Nd2 {[%clk 0:01:03]}  Qxf6 {[%clk 0:00:50]} 25. Nxb3 {[%clk 0:01:02]}  Bb6 {[%clk 0:00:45]} 26. Nd2 {[%clk 0:01:01]}  Qg5 {[%clk 0:00:41]} 27. g3 {[%clk 0:01:01]}  c4 {[%clk 0:00:35]} 28. Qxc4 {[%clk 0:00:58]}  Rac8 {[%clk 0:00:35]} 29. Qd3 {[%clk 0:00:58]}  Rc5 {[%clk 0:00:34]} 30. Kc2 {[%clk 0:00:50]}  Rxd5 {[%clk 0:00:29]} 31. Ne4 {[%clk 0:00:50]}  Rxd3 {[%clk 0:00:29]} 32. Nxg5 {[%clk 0:00:50]}  Rxd1 {[%clk 0:00:29]} 33. Rxd1 {[%clk 0:00:51]}  Rd8 {[%clk 0:00:24]} 34. c4 {[%clk 0:00:52]}  Bc7 {[%clk 0:00:16]} 35. b4 {[%clk 0:00:51]}  Re8 {[%clk 0:00:14]} 36. Kd3 {[%clk 0:00:43]}  d5 {[%clk 0:00:12]} 37. c5 {[%clk 0:00:39]}  Rb8 {[%clk 0:00:09]} 38. Ra1 {[%clk 0:00:38]}  h6 {[%clk 0:00:07]} 39. Nxf7 {[%clk 0:00:30]}  Kxf7 {[%clk 0:00:06]} 40. Rxa7 {[%clk 0:00:30]}  Rxb4 {[%clk 0:00:03]} 41. Rxc7+ {[%clk 0:00:30]}  Kf6 {[%clk 0:00:04]} 42. Rd7 {[%clk 0:00:29]}  Ke5 {[%clk 0:00:03]} 43. Rxg7 {[%clk 0:00:28]}  Rc4 {[%clk 0:00:02]} 44. Re7+ {[%clk 0:00:25]}  Kf6 {[%clk 0:00:02]} 45. Rc7 {[%clk 0:00:26]}  Ke5 {[%clk 0:00:02]} 46. c6 {[%clk 0:00:19]}  Kd6 {[%clk 0:00:02]} 47. Rh7 {[%clk 0:00:19]}  Kxc6 {[%clk 0:00:02]} 48. Rxh6+ {[%clk 0:00:20]}  Kc5 {[%clk 0:00:03]} 49. Rh8 {[%clk 0:00:20]}  Rd4+ {[%clk 0:00:03]} 50. Ke3 {[%clk 0:00:20]}  Ra4 {[%clk 0:00:03]} 51. Rc8+ {[%clk 0:00:18]}  Kd6 {[%clk 0:00:03]} 52. h4 {[%clk 0:00:19]}  Ke5 {[%clk 0:00:02]} 53. Re8+ {[%clk 0:00:17]}  Kf5 {[%clk 0:00:02]} 54. Kf3 {[%clk 0:00:18]}  Ra3+ {[%clk 0:00:02]} 55. Kg2 {[%clk 0:00:18]}  d4 {[%clk 0:00:02]} 56. Rf8+ {[%clk 0:00:18]}  Ke4 {[%clk 0:00:02]} 57. Re8+ {[%clk 0:00:17]}  Kd3 {[%clk 0:00:03]} 58. h5 {[%clk 0:00:17]}  Kc2 {[%clk 0:00:03]} 59. h6 {[%clk 0:00:17]}  Ra7 {[%clk 0:00:03]} 60. Rc8+ {[%clk 0:00:17]}  Kd2 {[%clk 0:00:02]} 61. g4 {[%clk 0:00:16]}  Ke3 {[%clk 0:00:02]} 62. g5 {[%clk 0:00:15]}  d3 {[%clk 0:00:03]} 63. g6 {[%clk 0:00:13]}  Ra6 {[%clk 0:00:03]} 64. Re8+ {[%clk 0:00:12]}  Kf4 {[%clk 0:00:02]} 65. g7 {[%clk 0:00:12]}  d2 {[%clk 0:00:01]} 66. Rd8 {[%clk 0:00:10]}  Rg6+ {[%clk 0:00:02]} 67. Kf2 {[%clk 0:00:10]}  Rxh6 {[%clk 0:00:01]} 68. g8=Q {[%clk 0:00:09]}  Rh2+ {[%clk 0:00:02]} 69. Kg1 {[%clk 0:00:09]}  Re2 {[%clk 0:00:02]} 70. Qc4+ {[%clk 0:00:08]}  Kf3 {[%clk 0:00:02]} 71. Rd3+ {[%clk 0:00:07]}  Re3 {[%clk 0:00:02]} 72. Rxe3+ {[%clk 0:00:06]}  Kxe3 {[%clk 0:00:03]} 73. Qf1 {[%clk 0:00:06]}  Kd4 {[%clk 0:00:03]} 74. Qd1 {[%clk 0:00:07]}  Ke3 {[%clk 0:00:04]} 75. Kf1 {[%clk 0:00:07]}  Kd3 {[%clk 0:00:04]} 76. Kf2 {[%clk 0:00:08]} 1-0


[Site "https://www.chess.com"]

[Event "Late Titled Tuesday Blitz February 8 2022"]
[White "Marcziter, Dmitrii"]
[Black "yondaymebr"]
[WhiteFideId "13900765"]
[WhiteElo "2155"]
[BlackElo "2533"]
[Result "1/2-1/2"]
[Round "04"]
[TimeControl "180+1"]
[Date "2022.02.09"]
[WhiteClock "0:00:20"]
[BlackClock "0:00:06"]

1. d4 {[%clk 0:03:00]}  d5 {[%clk 0:02:59]} 2. c4 {[%clk 0:03:00]}  e6 {[%clk 0:03:00]} 3. Nc3 {[%clk 0:02:59]}  Nf6 {[%clk 0:03:00]} 4. Bg5 {[%clk 0:02:58]}  Be7 {[%clk 0:03:00]} 5. e3 {[%clk 0:02:57]}  O-O {[%clk 0:03:00]} 6. cxd5 {[%clk 0:02:58]}  exd5 {[%clk 0:03:00]} 7. Qc2 {[%clk 0:02:58]}  c6 {[%clk 0:02:59]} 8. Bd3 {[%clk 0:02:57]}  Nbd7 {[%clk 0:02:59]} 9. Nge2 {[%clk 0:02:57]}  Re8 {[%clk 0:02:58]} 10. O-O {[%clk 0:02:56]}  Nf8 {[%clk 0:02:59]} 11. f3 {[%clk 0:02:55]}  g6 {[%clk 0:02:56]} 12. Rae1 {[%clk 0:02:48]}  Ne6 {[%clk 0:02:56]} 13. Bh6 {[%clk 0:02:47]}  b5 {[%clk 0:02:55]} 14. a3 {[%clk 0:02:45]}  Bb7 {[%clk 0:02:55]} 15. Ng3 {[%clk 0:02:44]}  a5 {[%clk 0:02:50]} 16. Nce2 {[%clk 0:02:34]}  Rc8 {[%clk 0:02:48]} 17. Nf4 {[%clk 0:02:33]}  Nxf4 {[%clk 0:02:43]} 18. Bxf4 {[%clk 0:02:32]}  b4 {[%clk 0:02:37]} 19. a4 {[%clk 0:02:27]}  c5 {[%clk 0:02:35]} 20. dxc5 {[%clk 0:02:26]}  Bxc5 {[%clk 0:02:34]} 21. Qd2 {[%clk 0:02:22]}  Qb6 {[%clk 0:02:33]} 22. Kh1 {[%clk 0:02:15]}  b3 {[%clk 0:02:28]} 23. Bb5 {[%clk 0:02:05]}  Bb4 {[%clk 0:02:23]} 24. Qd3 {[%clk 0:02:01]}  Bxe1 {[%clk 0:02:19]} 25. Rxe1 {[%clk 0:01:58]}  Bc6 {[%clk 0:02:14]} 26. Qxb3 {[%clk 0:01:49]}  Bxb5 {[%clk 0:02:11]} 27. axb5 {[%clk 0:01:49]}  Rc5 {[%clk 0:02:08]} 28. Bg5 {[%clk 0:01:45]}  Rxb5 {[%clk 0:02:05]} 29. Qc3 {[%clk 0:01:44]}  Nd7 {[%clk 0:02:02]} 30. Bh6 {[%clk 0:01:37]}  d4 {[%clk 0:01:57]} 31. exd4 {[%clk 0:01:34]}  Rxe1+ {[%clk 0:01:44]} 32. Qxe1 {[%clk 0:01:33]}  Qe6 {[%clk 0:01:45]} 33. Ne4 {[%clk 0:01:31]}  Rxb2 {[%clk 0:01:38]} 34. h3 {[%clk 0:01:24]}  Qb6 {[%clk 0:01:09]} 35. Qc3 {[%clk 0:01:18]}  Qb8 {[%clk 0:00:59]} 36. f4 {[%clk 0:01:06]}  Rb3 {[%clk 0:00:34]} 37. Qxa5 {[%clk 0:00:56]}  Nf8 {[%clk 0:00:30]} 38. Nf6+ {[%clk 0:00:50]}  Kh8 {[%clk 0:00:30]} 39. Qd5 {[%clk 0:00:45]}  Ne6 {[%clk 0:00:28]} 40. Nd7 {[%clk 0:00:40]}  Rb1+ {[%clk 0:00:24]} 41. Kh2 {[%clk 0:00:40]}  Qc7 {[%clk 0:00:24]} 42. Qa8+ {[%clk 0:00:29]}  Qd8 {[%clk 0:00:17]} 43. Qd5 {[%clk 0:00:24]}  Qc7 {[%clk 0:00:11]} 44. Qa8+ {[%clk 0:00:22]}  Nd8 {[%clk 0:00:08]} 45. Qd5 {[%clk 0:00:20]}  Ne6 {[%clk 0:00:06]} 1/2-1/2


[Site "https://www.chess.com"]

[Event "Late Titled Tuesday Blitz February 8 2022"]
[White "Martinez Ramirez, Lennis"]
[Black "Gaisinsky, Adam"]
[WhiteFideId "3509079"]
[BlackFideId "2620561"]
[WhiteElo "2374"]
[BlackElo "1965"]
[Result "1-0"]
[Round "04"]
[TimeControl "180+1"]
[Date "2022.02.09"]
[WhiteClock "0:01:13"]
[BlackClock "0:00:02"]

1. d4 {[%clk 0:02:59]}  Nf6 {[%clk 0:02:59]} 2. Bf4 {[%clk 0:02:59]}  d5 {[%clk 0:02:54]} 3. Nf3 {[%clk 0:02:58]}  e6 {[%clk 0:02:55]} 4. e3 {[%clk 0:02:56]}  Bd6 {[%clk 0:02:55]} 5. Bg3 {[%clk 0:02:56]}  O-O {[%clk 0:02:53]} 6. Bd3 {[%clk 0:02:53]}  c5 {[%clk 0:02:54]} 7. dxc5 {[%clk 0:02:52]}  Bxc5 {[%clk 0:02:51]} 8. Nbd2 {[%clk 0:02:52]}  Nc6 {[%clk 0:02:47]} 9. Qe2 {[%clk 0:02:52]}  Nb4 {[%clk 0:02:39]} 10. a3 {[%clk 0:02:51]}  Nxd3+ {[%clk 0:02:38]} 11. cxd3 {[%clk 0:02:52]}  a5 {[%clk 0:02:21]} 12. d4 {[%clk 0:02:47]}  Bd6 {[%clk 0:02:20]} 13. Bxd6 {[%clk 0:02:46]}  Qxd6 {[%clk 0:02:19]} 14. O-O {[%clk 0:02:46]}  b6 {[%clk 0:02:12]} 15. Rfc1 {[%clk 0:02:46]}  Ba6 {[%clk 0:02:09]} 16. Qd1 {[%clk 0:02:46]}  Rac8 {[%clk 0:02:07]} 17. Ne5 {[%clk 0:02:45]}  Nd7 {[%clk 0:02:00]} 18. Ndf3 {[%clk 0:02:38]}  f6 {[%clk 0:01:56]} 19. Nxd7 {[%clk 0:02:38]}  Qxd7 {[%clk 0:01:56]} 20. a4 {[%clk 0:02:38]}  Rxc1 {[%clk 0:01:53]} 21. Rxc1 {[%clk 0:02:38]}  Rc8 {[%clk 0:01:52]} 22. b3 {[%clk 0:02:38]}  Kf7 {[%clk 0:01:46]} 23. h4 {[%clk 0:02:36]}  Be2 {[%clk 0:01:39]} 24. Qd2 {[%clk 0:02:26]}  Bxf3 {[%clk 0:01:37]} 25. gxf3 {[%clk 0:02:27]}  Rxc1+ {[%clk 0:01:15]} 26. Qxc1 {[%clk 0:02:28]}  e5 {[%clk 0:01:16]} 27. Qc3 {[%clk 0:02:14]}  Qd6 {[%clk 0:01:00]} 28. Kf1 {[%clk 0:02:09]}  Kg6 {[%clk 0:00:51]} 29. Qd3+ {[%clk 0:02:08]}  Kh6 {[%clk 0:00:46]} 30. Ke2 {[%clk 0:02:04]}  Qb4 {[%clk 0:00:36]} 31. dxe5 {[%clk 0:02:04]}  fxe5 {[%clk 0:00:26]} 32. Qxd5 {[%clk 0:02:03]}  Qc3 {[%clk 0:00:23]} 33. Qe6+ {[%clk 0:01:38]}  g6 {[%clk 0:00:19]} 34. Qxb6 {[%clk 0:01:38]}  e4 {[%clk 0:00:11]} 35. fxe4 {[%clk 0:01:36]}  Qc2+ {[%clk 0:00:11]} 36. Kf3 {[%clk 0:01:36]}  Qd1+ {[%clk 0:00:11]} 37. Kf4 {[%clk 0:01:36]}  Qh1 {[%clk 0:00:07]} 38. Qf6 {[%clk 0:01:30]}  Qh2+ {[%clk 0:00:06]} 39. Kf3 {[%clk 0:01:30]}  Qh1+ {[%clk 0:00:05]} 40. Ke2 {[%clk 0:01:23]}  Qxe4 {[%clk 0:00:05]} 41. Qf4+ {[%clk 0:01:22]}  Qxf4 {[%clk 0:00:03]} 42. exf4 {[%clk 0:01:22]}  Kh5 {[%clk 0:00:04]} 43. b4 {[%clk 0:01:23]}  axb4 {[%clk 0:00:03]} 44. a5 {[%clk 0:01:23]}  b3 {[%clk 0:00:03]} 45. Kd3 {[%clk 0:01:16]}  Kxh4 {[%clk 0:00:02]} 46. a6 {[%clk 0:01:15]}  b2 {[%clk 0:00:02]} 47. Kc2 {[%clk 0:01:15]}  Kg4 {[%clk 0:00:02]} 48. a7 {[%clk 0:01:14]}  Kxf4 {[%clk 0:00:02]} 49. a8=Q {[%clk 0:01:13]} 1-0


[Site "https://www.chess.com"]

[Event "Late Titled Tuesday Blitz February 8 2022"]
[White "Martirosyan, Haik M."]
[Black "Pulvett Marin, Daniel Eduardo"]
[WhiteFideId "13306553"]
[BlackFideId "3900410"]
[WhiteElo "2735"]
[BlackElo "2413"]
[Result "0-1"]
[Round "04"]
[TimeControl "180+1"]
[Date "2022.02.08"]
[WhiteClock "0:00:04"]
[BlackClock "0:00:19"]

1. c4 {[%clk 0:03:00]}  c5 {[%clk 0:02:58]} 2. Nc3 {[%clk 0:03:00]}  g6 {[%clk 0:02:57]} 3. g3 {[%clk 0:03:00]}  Bg7 {[%clk 0:02:56]} 4. Bg2 {[%clk 0:03:01]}  Nc6 {[%clk 0:02:56]} 5. d3 {[%clk 0:03:01]}  d6 {[%clk 0:02:55]} 6. Nf3 {[%clk 0:02:59]}  Qd7 {[%clk 0:02:54]} 7. O-O {[%clk 0:02:57]}  b6 {[%clk 0:02:54]} 8. Bd2 {[%clk 0:02:56]}  Bb7 {[%clk 0:02:51]} 9. a3 {[%clk 0:02:57]}  e6 {[%clk 0:02:47]} 10. Rb1 {[%clk 0:02:57]}  Nge7 {[%clk 0:02:46]} 11. b4 {[%clk 0:02:57]}  O-O {[%clk 0:02:45]} 12. e3 {[%clk 0:02:56]}  Rad8 {[%clk 0:02:39]} 13. Qe2 {[%clk 0:02:55]}  Ne5 {[%clk 0:02:19]} 14. Nxe5 {[%clk 0:02:51]}  Bxe5 {[%clk 0:02:20]} 15. e4 {[%clk 0:02:46]}  Nc6 {[%clk 0:02:18]} 16. f4 {[%clk 0:02:44]}  Nd4 {[%clk 0:02:16]} 17. Qf2 {[%clk 0:02:44]}  Bg7 {[%clk 0:02:13]} 18. Be3 {[%clk 0:02:33]}  f5 {[%clk 0:02:03]} 19. h3 {[%clk 0:02:32]}  Rde8 {[%clk 0:01:44]} 20. g4 {[%clk 0:02:30]}  e5 {[%clk 0:01:31]} 21. gxf5 {[%clk 0:02:29]}  gxf5 {[%clk 0:01:29]} 22. Nd5 {[%clk 0:02:23]}  Bxd5 {[%clk 0:01:25]} 23. Bxd4 {[%clk 0:02:11]}  Bxc4 {[%clk 0:01:16]} 24. dxc4 {[%clk 0:01:53]}  exd4 {[%clk 0:01:15]} 25. exf5 {[%clk 0:01:41]}  Qxf5 {[%clk 0:01:15]} 26. Rb3 {[%clk 0:01:36]}  Re3 {[%clk 0:01:11]} 27. Rbb1 {[%clk 0:01:15]}  Rfe8 {[%clk 0:01:06]} 28. Kh1 {[%clk 0:01:13]}  Kh8 {[%clk 0:01:03]} 29. Rbd1 {[%clk 0:01:07]}  Bf6 {[%clk 0:00:57]} 30. Rg1 {[%clk 0:01:04]}  Rg8 {[%clk 0:00:50]} 31. Rde1 {[%clk 0:00:56]}  Reg3 {[%clk 0:00:41]} 32. Qe2 {[%clk 0:00:39]}  d3 {[%clk 0:00:39]} 33. Qd2 {[%clk 0:00:19]}  Bd4 {[%clk 0:00:37]} 34. Kh2 {[%clk 0:00:19]}  Bxg1+ {[%clk 0:00:33]} 35. Rxg1 {[%clk 0:00:19]}  R8g7 {[%clk 0:00:31]} 36. b5 {[%clk 0:00:16]}  Qg6 {[%clk 0:00:23]} 37. Be4 {[%clk 0:00:04]}  Rxh3+ {[%clk 0:00:19]} 38. Kxh3 {[%clk 0:00:04]}  Qh6# {[%clk 0:00:19]} 0-1


[Site "https://www.chess.com"]

[Event "Late Titled Tuesday Blitz February 8 2022"]
[White "Medeiros Jr, Francisco De Assis"]
[Black "Hamley, Ryan"]
[WhiteFideId "2114267"]
[BlackFideId "30959497"]
[WhiteElo "1998"]
[BlackElo "2470"]
[Result "1/2-1/2"]
[Round "04"]
[TimeControl "180+1"]
[Date "2022.02.09"]
[WhiteClock "0:00:05"]
[BlackClock "0:00:10"]

1. d4 {[%clk 0:03:00]}  Nf6 {[%clk 0:02:52]} 2. Nf3 {[%clk 0:03:00]}  g6 {[%clk 0:02:52]} 3. Bg5 {[%clk 0:03:00]}  Bg7 {[%clk 0:02:52]} 4. Nbd2 {[%clk 0:03:01]}  d5 {[%clk 0:02:52]} 5. e3 {[%clk 0:03:01]}  c6 {[%clk 0:02:52]} 6. Bd3 {[%clk 0:03:01]}  h6 {[%clk 0:02:52]} 7. Bh4 {[%clk 0:03:02]}  Nbd7 {[%clk 0:02:53]} 8. O-O {[%clk 0:03:01]}  O-O {[%clk 0:02:53]} 9. c4 {[%clk 0:03:02]}  Re8 {[%clk 0:02:53]} 10. Rc1 {[%clk 0:03:01]}  e5 {[%clk 0:02:52]} 11. cxd5 {[%clk 0:02:40]}  cxd5 {[%clk 0:02:46]} 12. dxe5 {[%clk 0:02:40]}  Nxe5 {[%clk 0:02:46]} 13. Nxe5 {[%clk 0:02:38]}  Rxe5 {[%clk 0:02:47]} 14. Nf3 {[%clk 0:02:33]}  Re7 {[%clk 0:02:42]} 15. Nd4 {[%clk 0:02:26]}  Bd7 {[%clk 0:02:23]} 16. Qb3 {[%clk 0:02:24]}  Qb6 {[%clk 0:01:52]} 17. Qxb6 {[%clk 0:01:56]}  axb6 {[%clk 0:01:53]} 18. a3 {[%clk 0:01:56]}  Be8 {[%clk 0:01:43]} 19. Rc2 {[%clk 0:01:47]}  Ba4 {[%clk 0:01:25]} 20. Rc3 {[%clk 0:01:39]}  Rd7 {[%clk 0:01:05]} 21. Rfc1 {[%clk 0:01:33]}  Ne4 {[%clk 0:01:03]} 22. Rc7 {[%clk 0:01:11]}  Be5 {[%clk 0:00:57]} 23. Rc8+ {[%clk 0:00:51]}  Rxc8 {[%clk 0:00:54]} 24. Rxc8+ {[%clk 0:00:52]}  Kg7 {[%clk 0:00:54]} 25. f4 {[%clk 0:00:52]}  Bd6 {[%clk 0:00:35]} 26. Nb5 {[%clk 0:00:39]}  Bc5 {[%clk 0:00:29]} 27. Nd4 {[%clk 0:00:29]}  Bd6 {[%clk 0:00:18]} 28. Kf1 {[%clk 0:00:22]}  Nc5 {[%clk 0:00:18]} 29. Bb5 {[%clk 0:00:19]}  Bxb5+ {[%clk 0:00:15]} 30. Nxb5 {[%clk 0:00:20]}  Be7 {[%clk 0:00:15]} 31. Bxe7 {[%clk 0:00:17]}  Rxe7 {[%clk 0:00:16]} 32. Ke2 {[%clk 0:00:18]}  Ne6 {[%clk 0:00:14]} 33. Kf3 {[%clk 0:00:16]}  f5 {[%clk 0:00:13]} 34. Rc2 {[%clk 0:00:13]}  Nc5 {[%clk 0:00:12]} 35. h3 {[%clk 0:00:10]}  g5 {[%clk 0:00:12]} 36. g3 {[%clk 0:00:10]}  Kf6 {[%clk 0:00:12]} 37. Nd4 {[%clk 0:00:08]}  Nd3 {[%clk 0:00:10]} 38. Rc8 {[%clk 0:00:06]}  gxf4 {[%clk 0:00:04]} 39. gxf4 {[%clk 0:00:06]}  Nxb2 {[%clk 0:00:03]} 40. Rf8+ {[%clk 0:00:06]}  Rf7 {[%clk 0:00:03]} 41. Rxf7+ {[%clk 0:00:06]}  Kxf7 {[%clk 0:00:04]} 42. Nxf5 {[%clk 0:00:07]}  Nc4 {[%clk 0:00:02]} 43. Nxh6+ {[%clk 0:00:06]}  Kg6 {[%clk 0:00:02]} 44. Ng4 {[%clk 0:00:06]}  Nxa3 {[%clk 0:00:03]} 45. Ne5+ {[%clk 0:00:06]}  Kf5 {[%clk 0:00:04]} 46. Nd7 {[%clk 0:00:07]}  b5 {[%clk 0:00:04]} 47. h4 {[%clk 0:00:06]}  b4 {[%clk 0:00:05]} 48. Nc5 {[%clk 0:00:07]}  Nc2 {[%clk 0:00:04]} 49. h5 {[%clk 0:00:04]}  Ne1+ {[%clk 0:00:04]} 50. Ke2 {[%clk 0:00:04]}  Ng2 {[%clk 0:00:04]} 51. Nd3 {[%clk 0:00:04]}  Nh4 {[%clk 0:00:04]} 52. Nxb4 {[%clk 0:00:03]}  Ke4 {[%clk 0:00:04]} 53. h6 {[%clk 0:00:03]}  Ng6 {[%clk 0:00:04]} 54. h7 {[%clk 0:00:04]}  Nh8 {[%clk 0:00:05]} 55. Kd2 {[%clk 0:00:04]}  d4 {[%clk 0:00:05]} 56. exd4 {[%clk 0:00:03]}  Kxd4 {[%clk 0:00:06]} 57. f5 {[%clk 0:00:03]}  Ke5 {[%clk 0:00:06]} 58. f6 {[%clk 0:00:03]}  Kxf6 {[%clk 0:00:06]} 59. Kc3 {[%clk 0:00:03]}  Ke5 {[%clk 0:00:07]} 60. Kc4 {[%clk 0:00:04]}  Kd6 {[%clk 0:00:07]} 61. Kb5 {[%clk 0:00:05]}  Kc7 {[%clk 0:00:07]} 62. Nd5+ {[%clk 0:00:05]}  Kd6 {[%clk 0:00:07]} 63. Nb4 {[%clk 0:00:04]}  Ke6 {[%clk 0:00:07]} 64. Kb6 {[%clk 0:00:04]}  Kf6 {[%clk 0:00:08]} 65. Kxb7 {[%clk 0:00:05]}  Kg7 {[%clk 0:00:09]} 66. Nc6 {[%clk 0:00:05]}  Kxh7 {[%clk 0:00:10]} 1/2-1/2


[Site "https://www.chess.com"]

[Event "Late Titled Tuesday Blitz February 8 2022"]
[White "Mirzoev, Azer"]
[Black "Noboa Silva, Kevin"]
[WhiteFideId "13400304"]
[BlackFideId "3618471"]
[WhiteElo "2525"]
[BlackElo "2161"]
[Result "0-1"]
[Round "04"]
[TimeControl "180+1"]
[Date "2022.02.09"]
[WhiteClock "0:00:01"]
[BlackClock "0:00:05"]

1. Nf3 {[%clk 0:03:00]}  Nf6 {[%clk 0:02:57]} 2. b4 {[%clk 0:02:59]}  e6 {[%clk 0:02:54]} 3. a3 {[%clk 0:02:56]}  b6 {[%clk 0:02:53]} 4. Bb2 {[%clk 0:02:56]}  Bb7 {[%clk 0:02:53]} 5. e3 {[%clk 0:02:57]}  d6 {[%clk 0:02:53]} 6. c4 {[%clk 0:02:57]}  Be7 {[%clk 0:02:52]} 7. Be2 {[%clk 0:02:57]}  Nbd7 {[%clk 0:02:52]} 8. O-O {[%clk 0:02:58]}  O-O {[%clk 0:02:52]} 9. d4 {[%clk 0:02:57]}  c5 {[%clk 0:02:52]} 10. Nbd2 {[%clk 0:02:56]}  cxd4 {[%clk 0:02:45]} 11. exd4 {[%clk 0:02:55]}  Re8 {[%clk 0:02:44]} 12. Qb3 {[%clk 0:02:54]}  Rc8 {[%clk 0:02:42]} 13. Rfe1 {[%clk 0:02:53]}  Qc7 {[%clk 0:02:43]} 14. h3 {[%clk 0:02:53]}  Qb8 {[%clk 0:02:43]} 15. Rad1 {[%clk 0:02:48]}  a6 {[%clk 0:02:40]} 16. Bf1 {[%clk 0:02:48]}  b5 {[%clk 0:02:26]} 17. c5 {[%clk 0:02:46]}  Bd5 {[%clk 0:02:23]} 18. Qe3 {[%clk 0:02:43]}  Qb7 {[%clk 0:01:44]} 19. Ng5 {[%clk 0:02:40]}  Bf8 {[%clk 0:01:25]} 20. Nge4 {[%clk 0:02:38]}  dxc5 {[%clk 0:01:21]} 21. dxc5 {[%clk 0:02:36]}  Be7 {[%clk 0:01:06]} 22. Nxf6+ {[%clk 0:02:33]}  Bxf6 {[%clk 0:01:04]} 23. Bxf6 {[%clk 0:02:31]}  Nxf6 {[%clk 0:01:03]} 24. Nb3 {[%clk 0:02:30]}  Red8 {[%clk 0:00:55]} 25. Na5 {[%clk 0:02:29]}  Qc7 {[%clk 0:00:46]} 26. Qe5 {[%clk 0:02:19]}  Qxe5 {[%clk 0:00:28]} 27. Rxe5 {[%clk 0:02:17]}  Re8 {[%clk 0:00:28]} 28. Ree1 {[%clk 0:02:14]}  Nd7 {[%clk 0:00:23]} 29. f3 {[%clk 0:02:10]}  Nb8 {[%clk 0:00:22]} 30. Kf2 {[%clk 0:01:57]}  Nc6 {[%clk 0:00:22]} 31. Nxc6 {[%clk 0:01:44]}  Rxc6 {[%clk 0:00:20]} 32. Rxd5 {[%clk 0:01:32]}  Ra8 {[%clk 0:00:15]} 33. Rd7 {[%clk 0:01:26]}  g6 {[%clk 0:00:15]} 34. Red1 {[%clk 0:01:19]}  Kg7 {[%clk 0:00:14]} 35. R1d6 {[%clk 0:01:00]}  Rcc8 {[%clk 0:00:13]} 36. Rb6 {[%clk 0:00:47]}  a5 {[%clk 0:00:13]} 37. Rbb7 {[%clk 0:00:47]}  axb4 {[%clk 0:00:13]} 38. axb4 {[%clk 0:00:46]}  Ra2+ {[%clk 0:00:12]} 39. Kg3 {[%clk 0:00:46]}  Rf8 {[%clk 0:00:12]} 40. Bxb5 {[%clk 0:00:43]}  h5 {[%clk 0:00:11]} 41. h4 {[%clk 0:00:36]}  Rb2 {[%clk 0:00:09]} 42. Bc4 {[%clk 0:00:35]}  Kf6 {[%clk 0:00:08]} 43. c6 {[%clk 0:00:32]}  Ke5 {[%clk 0:00:07]} 44. b5 {[%clk 0:00:27]}  Rg8 {[%clk 0:00:07]} 45. Rxf7 {[%clk 0:00:20]}  g5 {[%clk 0:00:07]} 46. Rg7 {[%clk 0:00:17]}  gxh4+ {[%clk 0:00:07]} 47. Kxh4 {[%clk 0:00:17]}  Rxg2 {[%clk 0:00:07]} 48. Rxg8 {[%clk 0:00:14]}  Rxg8 {[%clk 0:00:08]} 49. Rf7 {[%clk 0:00:13]}  Rg1 {[%clk 0:00:07]} 50. c7 {[%clk 0:00:11]}  Rc1 {[%clk 0:00:07]} 51. c8=Q {[%clk 0:00:07]}  Kd4 {[%clk 0:00:08]} 52. Qxe6 {[%clk 0:00:06]}  Kc3 {[%clk 0:00:08]} 53. Bd5 {[%clk 0:00:04]}  Kd2 {[%clk 0:00:07]} 54. Kg5 {[%clk 0:00:04]}  Rg1+ {[%clk 0:00:06]} 55. Kh6 {[%clk 0:00:01]}  h4 {[%clk 0:00:06]} 56. Rd7 {[%clk 0:00:01]}  Rd1 {[%clk 0:00:05]} 57. Bb3+ {[%clk 0:00:01]}  Kc3 {[%clk 0:00:05]} 58. Rxd1 {[%clk 0:00:01]}  Kb4 {[%clk 0:00:05]} 0-1


[Site "https://www.chess.com"]